fUSD/lending_fUSD_20240801
["ID","MTS","AMOUNT","RATE_DAILY","PERIOD"]
[333841917,1722546639814,-151.536677,0.00015616,2]
[333841918,1722546639827,-167.0,0.00015831,2]
[333841919,1722546639836,-3000.0,0.000159,2]
[333841920,1722546639846,-3000.0,0.00016,2]
[333841921,1722546639855,-650.0,0.00016,2]
[333841922,1722546639865,-1000.0,0.00016,2]
[333841923,1722546639875,-1378.36684199,0.00016113,2]
[333841924,1722546639885,-1000.0,0.00016287,2]
[333841925,1722546639894,-167.0,0.00016354,2]
[333841926,1722546639904,-151.536677,0.00016438,2]
[333841927,1722546639913,-300.0,0.00016438,2]
[333841928,1722546639923,-1009.44,0.0001647,2]
[333841929,1722546639932,-216.72,0.00016712,2]
[333841930,1722546639941,-3382.6351871,0.00016798,2]
[333841931,1722546639950,-254.56487691,0.00016855,2]
[333841932,1722546639960,-167.0,0.00016876,2]
[333841933,1722546639969,-150.0,0.00016903,2]
[333841934,1722546639978,-21729.0,0.00016903,2]
[333841935,1722546639990,-2936.49897258,0.00017122,2]
[333841936,1722546639999,-197.16,0.00017141,2]
[333841937,1722546640009,-151.536677,0.0001726,2]
[333841938,1722546640018,-150.0,0.00017381,2]
[333841939,1722546640028,-150.0,0.00017381,2]
[333841940,1722546640038,-150.0,0.00017381,2]
[333841941,1722546640047,-822.0,0.00017381,2]
[333841942,1722546640056,-1249.0,0.00017381,2]
[333841943,1722546640066,-478.224,0.00017381,2]
[333841945,1722546640075,-801.0,0.00017381,2]
[333841946,1722546640084,-396.0,0.00017381,2]
[333841948,1722546640094,-1135.0,0.00017381,2]
[333841950,1722546640104,-983.068,0.00017381,2]
[333841951,1722546640114,-1331.455,0.00017381,2]
[333841952,1722546640124,-167.0,0.00017399,2]
[333841953,1722546640134,-425.83,0.00017532,2]
[333841954,1722546640144,-150.0,0.00017532,2]
[333841955,1722546640154,-167.0,0.00017921,2]
[333841956,1722546640164,-1009.44,0.0001794,2]
[333841957,1722546640175,-1027.67076052,0.00018,2]
[333841958,1722546640185,-700.0,0.00018,2]
[333841959,1722546640195,-151.536677,0.00018082,2]
[333841960,1722546640205,-438.20136165,0.00018176,2]
[333841961,1722546640215,-167.0,0.00018444,2]
[333841962,1722546640225,-3000.0,0.000186,2]
[333841963,1722546640237,-1865.0,0.000186,2]
[333841964,1722546640248,-2936.49897258,0.00018678,2]
[333841965,1722546640258,-155.0,0.00019,2]
[333841966,1722546640269,-155.0,0.00019177,2]
[333841967,1722546640279,-155.0,0.00019319,2]
[333841968,1722546640288,-197.16,0.00019371,2]
[333841969,1722546640298,-155.0,0.00019398,2]
[333841970,1722546640308,-1009.44,0.0001941,2]
[333841971,1722546640318,-2383.95531201,0.00019451,2]
[333841972,1722546640328,-420.49,0.00019781,2]
[333841973,1722546640338,-420.49,0.00019781,2]
[333841974,1722546640348,-892.34,0.00019781,2]
[333841975,1722546640358,-1318.26,0.00019797,2]
[333841976,1722546640368,-432.96511074,0.0001989,2]
[333841977,1722546640378,-253.432325,0.0001989,2]
[333841978,1722546640388,-6500.0,0.000199,7]
[333841979,1722546640397,-150.0,0.00019903,2]
[333841980,1722546640407,-2435.812,0.00019903,2]
[333841981,1722546640416,-150.2,0.0001998,2]
[333841982,1722546640426,-500.0,0.0001999,2]
[333841983,1722546640435,-500.0,0.0001999,2]
[333841984,1722546640445,-500.0,0.0001999,2]
[333841985,1722546640455,-500.0,0.0001999,2]
[333841986,1722546640465,-500.0,0.0001999,2]
[333841987,1722546640475,-500.0,0.0001999,2]
[333841988,1722546640489,-500.0,0.0001999,2]
[333841989,1722546640499,-500.0,0.0001999,2]
[333841990,1722546640509,-500.0,0.0001999,2]
[333841991,1722546640518,-500.0,0.0001999,2]
[333841992,1722546640528,-500.0,0.0001999,2]
[333841993,1722546640539,-500.0,0.0001999,2]
[333841994,1722546640549,-500.0,0.0001999,2]
[333841995,1722546640558,-500.0,0.0001999,2]
[333841996,1722546640568,-500.0,0.0001999,2]
[333841997,1722546640578,-500.0,0.0001999,2]
[333841998,1722546640588,-500.0,0.0001999,2]
[333841999,1722546640598,-500.0,0.0001999,2]
[333842000,1722546640608,-500.0,0.0001999,2]
[333842001,1722546640617,-500.0,0.0001999,2]
[333842002,1722546640627,-500.0,0.0001999,2]
[333842003,1722546640638,-500.0,0.0001999,2]
[333842004,1722546640647,-500.0,0.0001999,2]
[333842005,1722546640656,-500.0,0.0001999,2]
[333842006,1722546640666,-500.0,0.0001999,2]
[333842007,1722546640676,-500.0,0.0001999,2]
[333842008,1722546640685,-500.0,0.0001999,2]
[333842009,1722546640695,-500.0,0.0001999,2]
[333842010,1722546640704,-500.0,0.0001999,2]
[333842011,1722546640713,-500.0,0.0001999,2]
[333842012,1722546640723,-500.0,0.0001999,2]
[333842013,1722546640735,-500.0,0.0001999,2]
[333842014,1722546640744,-500.0,0.0001999,2]
[333842015,1722546640754,-500.0,0.0001999,2]
[333842016,1722546640763,-500.0,0.0001999,2]
[333842017,1722546640773,-500.0,0.0001999,2]
[333842018,1722546640782,-500.0,0.0001999,2]
[333842019,1722546640792,-500.0,0.0001999,2]
[333842020,1722546640802,-500.0,0.0001999,2]
[333842021,1722546640812,-500.0,0.0001999,2]
[333842022,1722546640821,-500.0,0.0001999,2]
[333842023,1722546640831,-500.0,0.0001999,2]
[333842024,1722546640845,-500.0,0.0001999,2]
[333842025,1722546640855,-500.0,0.0001999,2]
[333842026,1722546640865,-500.0,0.0001999,2]
[333842027,1722546640874,-500.0,0.0001999,2]
[333842028,1722546640884,-500.0,0.0001999,2]
[333842029,1722546640893,-500.0,0.0001999,2]
[333842030,1722546640903,-500.0,0.0001999,2]
[333842031,1722546640912,-500.0,0.0001999,2]
[333842032,1722546640922,-500.0,0.0001999,2]
[333842033,1722546640932,-500.0,0.0001999,2]
[333842034,1722546640941,-500.0,0.0001999,2]
[333842035,1722546640951,-500.0,0.0001999,2]
[333842036,1722546640961,-500.0,0.0001999,2]
[333842037,1722546640970,-500.0,0.0001999,2]
[333842038,1722546640980,-500.0,0.0001999,2]
[333842039,1722546640994,-500.0,0.0001999,2]
[333842040,1722546641005,-500.0,0.0001999,2]
[333842041,1722546641014,-500.0,0.0001999,2]
[333842042,1722546641023,-500.0,0.0001999,2]
[333842043,1722546641035,-500.0,0.0001999,2]
[333842044,1722546641044,-500.0,0.0001999,2]
[333842045,1722546641054,-500.0,0.0001999,2]
[333842046,1722546641063,-500.0,0.0001999,2]
[333842047,1722546641073,-500.0,0.0001999,2]
[333842048,1722546641082,-500.0,0.0001999,2]
[333842049,1722546641092,-500.0,0.0001999,2]
[333842050,1722546641102,-500.0,0.0001999,2]
[333842051,1722546641112,-500.0,0.0001999,2]
[333842052,1722546641121,-500.0,0.0001999,2]
[333842053,1722546641131,-500.0,0.0001999,2]
[333842054,1722546641141,-500.0,0.0001999,2]
[333842055,1722546641150,-500.0,0.0001999,2]
[333842056,1722546641159,-500.0,0.0001999,2]
[333842057,1722546641168,-500.0,0.0001999,2]
[333842058,1722546641178,-500.0,0.0001999,2]
[333842059,1722546641187,-500.0,0.0001999,2]
[333842060,1722546641196,-500.0,0.0001999,2]
[333842061,1722546641206,-500.0,0.0001999,2]
[333842062,1722546641216,-500.0,0.0001999,2]
[333842063,1722546641227,-500.0,0.0001999,2]
[333842064,1722546641240,-500.0,0.0001999,2]
[333842065,1722546641249,-500.0,0.0001999,2]
[333842066,1722546641259,-500.0,0.0001999,2]
[333842067,1722546641269,-500.0,0.0001999,2]
[333842068,1722546641278,-500.0,0.0001999,2]
[333842069,1722546641288,-500.0,0.0001999,2]
[333842070,1722546641298,-500.0,0.0001999,2]
[333842071,1722546641307,-500.0,0.0001999,2]
[333842072,1722546641317,-500.0,0.0001999,2]
[333842073,1722546641326,-500.0,0.0001999,2]
[333842074,1722546641336,-500.0,0.0001999,2]
[333842075,1722546641346,-500.0,0.0001999,2]
[333842076,1722546641355,-500.0,0.0001999,2]
[333842077,1722546641365,-500.0,0.0001999,2]
[333842078,1722546641375,-500.0,0.0001999,2]
[333842079,1722546641384,-500.0,0.0001999,2]
[333842080,1722546641393,-500.0,0.0001999,2]
[333842081,1722546641403,-500.0,0.0001999,2]
[333842082,1722546641413,-500.0,0.0001999,2]
[333842083,1722546641422,-500.0,0.0001999,2]
[333842084,1722546641432,-500.0,0.0001999,2]
[333842085,1722546641441,-500.0,0.0001999,2]
[333842086,1722546641450,-500.0,0.0001999,2]
[333842087,1722546641460,-500.0,0.0001999,2]
[333842088,1722546641469,-500.0,0.0001999,2]
[333842089,1722546641478,-500.0,0.0001999,2]
[333842090,1722546641491,-500.0,0.0001999,2]
[333842091,1722546641500,-500.0,0.0001999,2]
[333842092,1722546641510,-500.0,0.0001999,2]
[333842093,1722546641519,-500.0,0.0001999,2]
[333842094,1722546641528,-500.0,0.0001999,2]
[333842095,1722546641538,-500.0,0.0001999,2]
[333842096,1722546641548,-500.0,0.0001999,2]
[333842097,1722546641559,-500.0,0.0001999,2]
[333842098,1722546641569,-500.0,0.0001999,2]
[333842099,1722546641578,-500.0,0.0001999,2]
[333842100,1722546641587,-500.0,0.0001999,2]
[333842101,1722546641597,-500.0,0.0001999,2]
[333842102,1722546641606,-500.0,0.0001999,2]
[333842103,1722546641615,-500.0,0.0001999,2]
[333842104,1722546641624,-500.0,0.0001999,2]
[333842105,1722546641634,-500.0,0.0001999,2]
[333842106,1722546641643,-500.0,0.0001999,2]
[333842107,1722546641652,-500.0,0.0001999,2]
[333842108,1722546641662,-500.0,0.0001999,2]
[333842109,1722546641671,-500.0,0.0001999,2]
[333842110,1722546641680,-500.0,0.0001999,2]
[333842111,1722546641689,-500.0,0.0001999,2]
[333842112,1722546641712,-500.0,0.0001999,2]
[333842113,1722546641730,-500.0,0.0001999,2]
[333842114,1722546641748,-500.0,0.0001999,2]
[333842115,1722546641767,-500.0,0.0001999,2]
[333842116,1722546641787,-500.0,0.0001999,2]
[333842117,1722546641804,-500.0,0.0001999,2]
[333842118,1722546641823,-500.0,0.0001999,2]
[333842119,1722546641841,-500.0,0.0001999,2]
[333842120,1722546641857,-500.0,0.0001999,2]
[333842121,1722546641874,-500.0,0.0001999,2]
[333842122,1722546641894,-500.0,0.0001999,2]
[333842123,1722546641909,-500.0,0.0001999,2]
[333842124,1722546641925,-500.0,0.0001999,2]
[333842125,1722546641943,-500.0,0.0001999,2]
[333842126,1722546641958,-500.0,0.0001999,2]
[333842127,1722546641974,-500.0,0.0001999,2]
[333842128,1722546641991,-500.0,0.0001999,2]
[333842129,1722546642008,-500.0,0.0001999,2]
[333842130,1722546642023,-500.0,0.0001999,2]
[333842131,1722546642039,-500.0,0.0001999,2]
[333842132,1722546642054,-500.0,0.0001999,2]
[333842133,1722546642086,-500.0,0.0001999,2]
[333842134,1722546642102,-500.0,0.0001999,2]
[333842135,1722546642118,-500.0,0.0001999,2]
[333842136,1722546642133,-500.0,0.0001999,2]
[333842137,1722546642148,-500.0,0.0001999,2]
[333842138,1722546642163,-500.0,0.0001999,2]
[333842139,1722546642179,-500.0,0.0001999,2]
[333842140,1722546642194,-500.0,0.0001999,2]
[333842141,1722546642209,-500.0,0.0001999,2]
[333842142,1722546642224,-500.0,0.0001999,2]
[333842143,1722546642241,-500.0,0.0001999,2]
[333842144,1722546642257,-500.0,0.0001999,2]
[333842145,1722546642271,-500.0,0.0001999,2]
[333842146,1722546642287,-500.0,0.0001999,2]
[333842148,1722546642301,-500.0,0.0001999,2]
[333842149,1722546642317,-500.0,0.0001999,2]
[333842152,1722546642332,-500.0,0.0001999,2]
[333842154,1722546642346,-500.0,0.0001999,2]
[333842157,1722546642363,-500.0,0.0001999,2]
[333842160,1722546642378,-500.0,0.0001999,2]
[333842162,1722546642393,-500.0,0.0001999,2]
[333842164,1722546642409,-500.0,0.0001999,2]
[333842166,1722546642423,-500.0,0.0001999,2]
[333842169,1722546642438,-500.0,0.0001999,2]
[333842171,1722546642453,-500.0,0.0001999,2]
[333842174,1722546642468,-500.0,0.0001999,2]
[333842177,1722546642485,-500.0,0.0001999,2]
[333842181,1722546642500,-500.0,0.0001999,2]
[333842184,1722546642515,-500.0,0.0001999,2]
[333842186,1722546642530,-500.0,0.0001999,2]
[333842189,1722546642545,-500.0,0.0001999,2]
[333842190,1722546642561,-500.0,0.0001999,2]
[333842191,1722546642575,-500.0,0.0001999,2]
[333842192,1722546642591,-500.0,0.0001999,2]
[333842193,1722546642606,-500.0,0.0001999,2]
[333842194,1722546642621,-500.0,0.0001999,2]
[333842195,1722546642638,-500.0,0.0001999,2]
[333842196,1722546642652,-500.0,0.0001999,2]
[333842197,1722546642669,-500.0,0.0001999,2]
[333842198,1722546642684,-500.0,0.0001999,2]
[333842199,1722546642698,-500.0,0.0001999,2]
[333842200,1722546642713,-500.0,0.0001999,2]
[333842201,1722546642728,-500.0,0.0001999,2]
[333842202,1722546642744,-500.0,0.0001999,2]
[333842203,1722546642759,-500.0,0.0001999,2]
[333842204,1722546642774,-500.0,0.0001999,2]
[333842205,1722546642789,-500.0,0.0001999,2]
[333842206,1722546642806,-500.0,0.0001999,2]
[333842207,1722546642821,-500.0,0.0001999,2]
[333842208,1722546642838,-500.0,0.0001999,2]
[333842209,1722546642853,-500.0,0.0001999,2]
[333842211,1722546642868,-500.0,0.0001999,2]
[333842212,1722546642883,-500.0,0.0001999,2]
[333842213,1722546642899,-500.0,0.0001999,2]
[333842214,1722546642915,-500.0,0.0001999,2]
[333842216,1722546642930,-500.0,0.0001999,2]
[333842219,1722546642946,-500.0,0.0001999,2]
[333842221,1722546642960,-500.0,0.0001999,2]
[333842224,1722546642975,-500.0,0.0001999,2]
[333842226,1722546642990,-500.0,0.0001999,2]
[333842229,1722546643004,-500.0,0.0001999,2]
[333842232,1722546643019,-500.0,0.0001999,2]
[333842236,1722546643034,-500.0,0.0001999,2]
[333842240,1722546643048,-500.0,0.0001999,2]
[333842242,1722546643063,-500.0,0.0001999,2]
[333842245,1722546643077,-500.0,0.0001999,2]
[333842247,1722546643091,-500.0,0.0001999,2]
[333842251,1722546643105,-500.0,0.0001999,2]
[333842254,1722546643119,-500.0,0.0001999,2]
[333842259,1722546643134,-500.0,0.0001999,2]
[333842262,1722546643149,-500.0,0.0001999,2]
[333842265,1722546643165,-500.0,0.0001999,2]
[333842267,1722546643179,-500.0,0.0001999,2]
[333842270,1722546643194,-500.0,0.0001999,2]
[333842273,1722546643209,-500.0,0.0001999,2]
[333842275,1722546643224,-500.0,0.0001999,2]
[333842277,1722546643239,-500.0,0.0001999,2]
[333842280,1722546643253,-500.0,0.0001999,2]
[333842282,1722546643267,-500.0,0.0001999,2]
[333842285,1722546643281,-500.0,0.0001999,2]
[333842288,1722546643297,-500.0,0.0001999,2]
[333842290,1722546643312,-500.0,0.0001999,2]
[333842291,1722546643325,-500.0,0.0001999,2]
[333842292,1722546643341,-500.0,0.0001999,2]
[333842293,1722546643355,-500.0,0.0001999,2]
[333842294,1722546643370,-500.0,0.0001999,2]
[333842295,1722546643386,-500.0,0.0001999,2]
[333842296,1722546643400,-500.0,0.0001999,2]
[333842297,1722546643414,-500.0,0.0001999,2]
[333842298,1722546643429,-500.0,0.0001999,2]
[333842299,1722546643443,-500.0,0.0001999,2]
[333842300,1722546643456,-500.0,0.0001999,2]
[333842301,1722546643470,-500.0,0.0001999,2]
[333842302,1722546643485,-500.0,0.0001999,2]
[333842303,1722546643499,-500.0,0.0001999,2]
[333842304,1722546643514,-500.0,0.0001999,2]
[333842305,1722546643529,-500.0,0.0001999,2]
[333842306,1722546643543,-500.0,0.0001999,2]
[333842307,1722546643558,-500.0,0.0001999,2]
[333842308,1722546643571,-500.0,0.0001999,2]
[333842309,1722546643586,-500.0,0.0001999,2]
[333842310,1722546643599,-500.0,0.0001999,2]
[333842311,1722546643614,-1282.3416809,0.0002,2]
[333842312,1722546643628,-6287.75185232,0.0002,2]
[333842313,1722546643642,-258.32371232,0.0002,2]
[333842314,1722546643656,-155.0,0.0002,2]
[333842315,1722546643670,-1368.75481204,0.0002,5]
[333842316,1722546643683,-150.0,0.0002,2]
[333842317,1722546643697,-150.0,0.0002,2]
[333842318,1722546643711,-174.0,0.0002,2]
[333842319,1722546643725,-750.0,0.0002,2]
[333842320,1722546643740,-150.0,0.0002,2]
[333842321,1722546643755,-1800.0,0.00020088,2]
[333842322,1722546643769,-800.0,0.00020179,2]
[333842323,1722546643783,-3883.18257477,0.00020222,2]
[333842324,1722546643798,-800.0,0.00020232,2]
[333842325,1722546643812,-2936.49897258,0.00020233,2]
[333842326,1722546643826,-500.0,0.00020338,2]
[333842327,1722546643843,-500.0,0.00020361,2]
[333842328,1722546643857,-500.0,0.00020377,2]
[333842329,1722546643871,-150.0,0.00020381,2]
[333842330,1722546643886,-150.0,0.00020381,2]
[333842331,1722546643899,-646.49,0.00020447,2]
[333842332,1722546643914,-900.0,0.00020447,2]
[333842333,1722546643928,-6450.6834,0.0002046,2]
[333842334,1722546643943,-500.0,0.000205,2]
[333842335,1722546643957,-1000.0,0.00020512,2]
[333842336,1722546643972,-500.0,0.00020544,2]
[333842337,1722546643988,-1800.0,0.00020628,2]
[333842338,1722546644002,-1800.0,0.00020692,2]
[333842339,1722546644017,-1800.0,0.00020716,2]
[333842340,1722546644031,-500.0,0.00020758,2]
[333842341,1722546644045,-150.0,0.00020796,2]
[333842342,1722546644061,-325.58,0.00020796,2]
[333842343,1722546644075,-850.93,0.00020796,2]
[333842344,1722546644090,-155.0,0.00020821,2]
[333842345,1722546644105,-155.0,0.00020821,2]
[333842346,1722546644120,-1009.44,0.0002088,2]
[333842347,1722546644136,-886.0635091,0.000209,2]
[333842348,1722546644150,-57269.7711925,0.000209,3]
[333842349,1722546644165,-8200.0,0.000209,7]
[333842350,1722546644180,-500.0,0.00020961,2]
[333842351,1722546644194,-352.6093531,0.00020985,2]
[333842352,1722546644209,-9350.6317691,0.00020985,2]
[333842353,1722546644224,-1018.42089926,0.00020999,5]
[333842354,1722546644239,-161.5333,0.00020999,2]
[333842355,1722546644254,-264.609316,0.00020999,2]
[333842356,1722546644270,-264.609316,0.00020999,2]
[333842357,1722546644285,-151.0,0.00020999,2]
[333842358,1722546644300,-500000.0,0.00021,2]
[333842359,1722546644316,-151.0,0.00021,2]
[333842360,1722546644332,-151.0,0.00021,2]
[333842361,1722546644348,-151.0,0.00021,2]
[333842362,1722546644363,-265.48,0.00021,2]
[333842363,1722546644378,-3000.0,0.00021,2]
[333842364,1722546644393,-500.0,0.00021085,2]
[333842365,1722546644408,-800.0,0.00021344,2]
[333842366,1722546644423,-3000.0,0.000214,2]
[333842367,1722546644438,-395.0,0.000214,2]
[333842368,1722546644453,-500.0,0.00021413,2]
[333842369,1722546644467,-187.233964,0.0002142,2]
[333842370,1722546644482,-1800.0,0.00021514,2]
[333842371,1722546644498,-432.96511071,0.0002156,2]
[333842372,1722546644513,-500.0,0.00021581,2]
[333842373,1722546644529,-500.0,0.00021592,2]
[333842374,1722546644545,-197.16,0.00021602,2]
[333842375,1722546644560,-500.0,0.00021628,2]
[333842376,1722546644577,-500.0,0.00021632,2]
[333842377,1722546644591,-894.72,0.00021705,2]
[333842378,1722546644607,-834.29,0.00021715,2]
[333842379,1722546644620,-2936.49897258,0.00021789,2]
[333842380,1722546644634,-2000.0,0.000219,2]
[333842381,1722546644649,-500.0,0.000219,2]
[333842382,1722546644663,-1200.0,0.000219,2]
[333842383,1722546644678,-650.0,0.000219,2]
[333842384,1722546644693,-278.91592785,0.000219,2]
[333842385,1722546644707,-200.0,0.000219,2]
[333842386,1722546644721,-1000.0,0.000219,2]
[333842387,1722546644738,-1938.17,0.00021918,2]
[333842388,1722546644751,-150.0,0.00021918,2]
[333842389,1722546644769,-500.0,0.00021918,2]
[333842390,1722546644784,-500.0,0.00021918,2]
[333842391,1722546644799,-500.0,0.00021918,2]
[333842392,1722546644815,-500.0,0.00021918,2]
[333842393,1722546644829,-500.0,0.00021918,2]
[333842394,1722546644847,-500.0,0.00021918,2]
[333842395,1722546644860,-500.0,0.00021942,2]
[333842396,1722546644876,-500.0,0.00021951,2]
[333842397,1722546644891,-500.0,0.0002196,2]
[333842398,1722546644906,-500.0,0.00021969,2]
[333842399,1722546644921,-500.0,0.00021978,2]
[333842400,1722546644935,-500.0,0.00021986,2]
[333842401,1722546644949,-500.0,0.00021995,2]
[333842402,1722546644964,-634.66593338,0.00022,2]
[333842403,1722546644978,-150.0,0.00022,2]
[333842404,1722546644996,-500.0,0.00022004,2]
[333842405,1722546645011,-500.0,0.00022013,2]
[333842406,1722546645024,-500.0,0.00022022,2]
[333842407,1722546645038,-500.0,0.0002203,2]
[333842408,1722546645051,-500.0,0.00022039,2]
[333842409,1722546645065,-500.0,0.00022048,2]
[333842410,1722546645080,-500.0,0.00022057,2]
[333842411,1722546645093,-500.0,0.00022066,2]
[333842412,1722546645107,-500.0,0.00022074,2]
[333842413,1722546645120,-500.0,0.00022083,2]
[333842414,1722546645133,-500.0,0.00022092,2]
[333842415,1722546645147,-500.0,0.00022101,2]
[333842416,1722546645159,-500.0,0.0002211,2]
[333842417,1722546645173,-500.0,0.00022118,2]
[333842418,1722546645186,-500.0,0.00022127,2]
[333842419,1722546645201,-500.0,0.00022136,2]
[333842420,1722546645215,-500.0,0.00022138,2]
[333842421,1722546645229,-500.0,0.00022145,2]
[333842422,1722546645245,-500.0,0.00022154,2]
[333842423,1722546645258,-500.0,0.00022162,2]
[333842424,1722546645272,-500.0,0.00022171,2]
[333842425,1722546645286,-151.0,0.00022243,2]
[333842426,1722546645301,-500.0,0.00022312,2]
[333842427,1722546645314,-500.0,0.00022321,2]
[333842428,1722546645327,-500.0,0.0002233,2]
[333842429,1722546645342,-500.0,0.00022339,2]
[333842430,1722546645356,-500.0,0.00022348,2]
[333842431,1722546645369,-1009.44,0.0002235,2]
[333842432,1722546645384,-500.0,0.00022356,2]
[333842433,1722546645398,-500.0,0.00022365,2]
[333842434,1722546645412,-500.0,0.00022373,2]
[333842435,1722546645425,-500.0,0.00022374,2]
[333842437,1722546645439,-500.0,0.00022485,2]
[333842439,1722546645452,-500.0,0.00022494,2]
[333842441,1722546645466,-150.0,0.00022495,2]
[333842442,1722546645480,-500.0,0.00022502,2]
[333842443,1722546645499,-500.0,0.00022511,2]
[333842444,1722546645514,-150.0,0.00022518,2]
[333842445,1722546645527,-500.0,0.0002252,2]
[333842446,1722546645542,-500.0,0.00022529,2]
[333842447,1722546645556,-500.0,0.00022538,2]
[333842448,1722546645570,-500.0,0.00022546,2]
[333842449,1722546645585,-237.33,0.00022548,2]
[333842450,1722546645599,-500.0,0.00022555,2]
[333842496,1722546646486,-500.0,0.00022564,2]
[333842501,1722546646527,-500.0,0.0002258,2]
[333842504,1722546646552,-500.0,0.00022874,2]
[333842507,1722546646570,-150.0,0.00022903,2]
[333842509,1722546646579,-500.0,0.00023044,2]
[333842511,1722546646589,-150.0,0.00023071,2]
[333842513,1722546646598,-313.35,0.00023197,2]
[333842515,1722546646608,-180.0,0.00023205,2]
[333842517,1722546646617,-500.0,0.00023209,2]
[333842519,1722546646627,-432.96511071,0.0002323,2]
[333842521,1722546646636,-800.0,0.00023234,2]
[333842523,1722546646646,-500.0,0.00023243,2]
[333842525,1722546646655,-2936.49897258,0.00023344,2]
[333842527,1722546646665,-384.10102941,0.00023409,2]
[333842529,1722546646675,-500.0,0.00023501,2]
[333842531,1722546646684,-3704.5526132,0.00023555,2]
[333842533,1722546646694,-150.0,0.00023648,2]
[333842535,1722546646703,-500.0,0.00023766,2]
[333842537,1722546646713,-1009.44,0.0002382,2]
[333842539,1722546646722,-197.16,0.00023832,2]
[333842541,1722546646732,-305.3258537,0.00023992,2]
[333842543,1722546646744,-2900.0,0.00024,30]
[333842545,1722546646753,-400.12580066,0.00024,4]
[333842547,1722546646763,-3000.0,0.000241,2]
[333842549,1722546646772,-1800.0,0.00024155,2]
[333842551,1722546646782,-300.5,0.00024192,2]
[333842553,1722546646792,-150.0,0.00024225,2]
[333842555,1722546646802,-150.0,0.00024252,2]
[333842557,1722546646812,-150.0,0.00024266,2]
[333842559,1722546646821,-150.0,0.00024267,2]
[333842560,1722546646832,-500.0,0.0002427,2]
[333842562,1722546646843,-150.0,0.00024281,2]
[333842564,1722546646853,-150.0,0.00024284,2]
[333842566,1722546646862,-150.0,0.00024292,2]
[333842568,1722546646872,-150.0,0.00024309,2]
[333842570,1722546646882,-150.0,0.00024311,2]
[333842572,1722546646891,-150.0,0.00024324,2]
[333842574,1722546646901,-150.0,0.00024337,2]
[333842576,1722546646910,-800.0,0.00024346,2]
[333842578,1722546646921,-150.0,0.00024352,2]
[333842580,1722546646932,-150.0,0.0002436,2]
[333842582,1722546646941,-150.0,0.00024369,2]
[333842585,1722546646951,-500.0,0.00024372,2]
[333842587,1722546646960,-150.0,0.00024377,2]
[333842589,1722546646970,-500.0,0.00024393,2]
[333842591,1722546646979,-150.0,0.00024394,2]
[333842593,1722546646991,-150.0,0.00024395,2]
[333842595,1722546647000,-1000.0,0.000244,2]